bitfinex/quotes_BTCUSD_20241206
["timestamp","ask_amount","ask_price","bid_price","bid_amount"]
[1733510068065,0.027,101400.0,101390.0,0.029588]
[1733510068320,0.12302951,101400.0,101390.0,0.029588]
[1733510068529,0.12302951,101400.0,101380.0,0.209177]
[1733510068761,0.12302951,101400.0,101380.0,0.23400339]
[1733510069192,0.12302951,101400.0,101380.0,0.26359239]
[1733510069417,0.10002951,101390.0,101380.0,0.26359239]
[1733510069628,0.10002951,101390.0,101380.0,0.08400339]
[1733510071184,0.10202951,101390.0,101380.0,0.08400339]
[1733510071857,0.10202951,101390.0,101380.0,0.09000524]
[1733510072307,0.12502951,101390.0,101380.0,0.00600185]
[1733510072553,0.12702951,101390.0,101380.0,0.00382537]
[1733510072991,0.023,101380.0,101370.0,0.0606288]
[1733510073199,0.12302951,101380.0,101370.0,0.0606288]
[1733510073421,0.12302951,101380.0,101370.0,0.0014448]
[1733510073635,0.37030651,101380.0,101370.0,0.0014448]
[1733510074077,0.37030651,101380.0,101370.0,0.0034448]
[1733510074526,0.37030651,101380.0,101370.0,0.0014448]
[1733510075230,0.42030651,101380.0,101370.0,0.0014448]
[1733510075450,0.10002951,101380.0,101370.0,0.0310388]
[1733510075674,0.10002951,101380.0,101370.0,0.29110132]
[1733510076115,0.10002951,101380.0,101370.0,0.29010132]
[1733510076398,0.197297,101370.0,101350.0,0.3057809]
[1733510076587,0.32034551,101360.0,101350.0,0.30595379]
[1733510076800,0.37034551,101360.0,101350.0,0.30595379]
[1733510077002,0.17302951,101360.0,101350.0,0.30595379]
[1733510077210,0.10002951,101360.0,101350.0,0.65721222]
[1733510078069,0.10002951,101360.0,101350.0,0.12972486]
[1733510078070,0.12302951,101360.0,101350.0,0.12972486]
[1733510078294,0.12302951,101360.0,101350.0,0.03752895]
[1733510078699,0.10402951,101360.0,101350.0,0.32619147]
[1733510079617,0.12902951,101360.0,101350.0,0.03752895]
[1733510079844,0.37634551,101360.0,101350.0,0.03752895]
[1733510080070,0.33234551,101360.0,101350.0,0.03852895]
[1733510080316,0.18502951,101360.0,101350.0,0.04847573]
[1733510080534,0.13502951,101360.0,101350.0,0.04847573]
[1733510080783,0.13502951,101360.0,101350.0,0.32719147]
[1733510080992,0.13502951,101360.0,101350.0,0.06899825]
[1733510081638,0.11202951,101360.0,101350.0,0.32806077]
[1733510081847,0.11202951,101360.0,101350.0,0.47806077]
[1733510082272,0.11202951,101360.0,101350.0,0.53196073]
[1733510083671,0.11202951,101360.0,101350.0,0.47806077]
[1733510084082,0.11202951,101360.0,101350.0,0.21899825]
[1733510086698,0.10802951,101360.0,101350.0,0.21899825]
[1733510086905,0.10002951,101360.0,101350.0,0.21799825]
[1733510087112,0.10202951,101360.0,101350.0,0.21799825]
[1733510087315,0.10202951,101360.0,101350.0,0.24820553]
[1733510087730,0.10302951,101360.0,101350.0,0.24820553]
[1733510087944,0.003,101360.0,101350.0,0.50726805]
[1733510088151,0.003,101360.0,101350.0,0.24820553]
[1733510088393,0.003,101360.0,101350.0,0.01784523]
[1733510088590,0.003,101360.0,101350.0,0.04843166]
[1733510089031,0.002,101360.0,101350.0,0.04843166]
[1733510089339,0.002,101360.0,101350.0,0.04943166]
[1733510089430,0.1041386,101390.0,101380.0,0.029591]
[1733510089657,0.20416811,101390.0,101380.0,0.0355093]
[1733510089879,0.20416811,101390.0,101380.0,0.029591]
[1733510090603,0.20416811,101390.0,101370.0,0.059184]
[1733510090604,0.023,101380.0,101370.0,0.059184]
[1733510090843,0.12302951,101380.0,101370.0,0.059184]
[1733510092719,0.12902951,101380.0,101370.0,0.060184]
[1733510092953,0.01,101380.0,101370.0,0.060184]
[1733510093214,0.01,101380.0,101370.0,0.07514166]
[1733510093904,0.01,101380.0,101370.0,0.22514166]
[1733510094126,0.01,101380.0,101370.0,0.22415536]
[1733510094357,0.11002951,101380.0,101370.0,0.210184]
[1733510094817,0.13302951,101380.0,101370.0,0.210184]
[1733510095036,0.12302951,101380.0,101370.0,0.059184]
[1733510095484,0.12402951,101380.0,101370.0,0.061184]
[1733510095772,0.12302951,101380.0,101370.0,0.059184]
[1733510096038,0.12502951,101380.0,101370.0,0.059184]
[1733510096284,0.12902951,101380.0,101370.0,0.059184]
[1733510096454,0.12902951,101380.0,101370.0,0.07305536]
[1733510096696,0.13502951,101380.0,101370.0,0.07405536]
[1733510097173,0.13502951,101380.0,101370.0,0.06905536]
[1733510099379,0.33230651,101380.0,101370.0,0.001]
[1733510099589,0.41250651,101380.0,101370.0,0.001]
[1733510101338,0.197298,101370.0,101350.0,0.0304676]
[1733510101559,0.37034551,101360.0,101350.0,0.0008696]
[1733510101787,0.12302951,101360.0,101350.0,0.0304696]
[1733510102022,0.12302951,101360.0,101350.0,0.04059717]
[1733510102023,0.10002951,101360.0,101350.0,0.04059717]
[1733510102271,0.10002951,101360.0,101350.0,0.04059709]
[1733510102482,0.10002951,101360.0,101350.0,0.03961054]
[1733510102771,0.10002951,101360.0,101350.0,0.0304696]
[1733510102978,0.12902951,101360.0,101350.0,0.0304696]
[1733510103230,0.10102951,101360.0,101350.0,0.0304696]
[1733510103451,0.001,101360.0,101350.0,0.0304696]
[1733510104296,0.001,101360.0,101350.0,0.03145596]
[1733510104514,0.001,101360.0,101350.0,0.07618574]
[1733510104779,0.0017386,101390.0,101380.0,0.029591]
[1733510104983,0.10176811,101390.0,101380.0,0.029591]
[1733510105186,0.12476811,101390.0,101380.0,0.029591]
[1733510106244,0.13076811,101390.0,101380.0,0.030591]
[1733510106647,0.13376811,101390.0,101380.0,0.030591]
[1733510106856,0.13376811,101390.0,101380.0,0.05465554]
[1733510107078,0.023,101350.0,101340.0,0.0017378]
[1733510107313,0.37036451,101350.0,101340.0,0.0017378]
[1733510107540,0.12302951,101350.0,101340.0,0.0017378]
[1733510107764,0.12302951,101350.0,101340.0,0.0313408]
[1733510107970,0.12302951,101350.0,101340.0,0.03752223]
[1733510108644,0.12302951,101350.0,101340.0,0.03191721]
[1733510109064,0.005,101350.0,101340.0,0.03290197]
[1733510109289,0.005,101350.0,101340.0,0.08290197]
[1733510109525,0.013,101350.0,101340.0,0.37544763]
[1733510109768,0.008,101350.0,101340.0,0.37544763]
[1733510109977,0.00272538,101390.0,101380.0,0.029591]
[1733510110186,0.10275489,101390.0,101380.0,0.029591]
[1733510111328,0.10333095,101390.0,101380.0,0.029591]
[1733510112076,0.10634417,101390.0,101380.0,0.029591]
[1733510112284,0.10634417,101390.0,101380.0,0.03057734]
[1733510112516,0.11034417,101390.0,101380.0,0.20455347]
[1733510112649,0.10634417,101390.0,101380.0,0.20356713]
[1733510112884,0.11534417,101390.0,101380.0,0.20356713]
[1733510113276,0.10634417,101390.0,101380.0,0.20356713]
[1733510113734,0.10734417,101390.0,101380.0,0.20356713]
[1733510113941,0.10734417,101390.0,101380.0,0.179591]
[1733510114314,0.10334417,101390.0,101380.0,0.179591]
[1733510114722,0.10434417,101390.0,101380.0,0.179591]
[1733510114952,0.10334417,101390.0,101380.0,0.179591]
[1733510115157,0.00931466,101390.0,101380.0,0.179591]
[1733510115369,0.00931466,101390.0,101380.0,0.2065029]
[1733510115574,0.00331466,101390.0,101380.0,0.20551664]
[1733510115811,0.00431466,101390.0,101380.0,0.20551664]
[1733510118518,0.10434417,101390.0,101380.0,0.20551664]
[1733510119279,0.00431466,101390.0,101380.0,0.20551664]
[1733510119482,6.6e-07,101390.0,101380.0,0.20551664]
[1733510119931,0.10003017,101390.0,101380.0,0.20551664]
[1733510122373,0.20203017,101390.0,101340.0,0.36898461]
[1733510122559,0.10101629,101380.0,101350.0,0.00098641]
[1733510122752,0.10101629,101380.0,101370.0,0.029594]
[1733510123135,0.12302951,101380.0,101360.0,0.05919]
[1733510123360,0.12302951,101380.0,101360.0,0.0384738]
[1733510123361,0.00098678,101370.0,101360.0,0.0384738]
[1733510123554,0.10101629,101370.0,101360.0,0.0384738]
[1733510123704,0.10002951,101370.0,101360.0,0.0384738]
[1733510124331,0.10002951,101370.0,101360.0,0.1884738]
[1733510124555,0.10102951,101370.0,101360.0,0.1884738]
[1733510125660,0.10202951,101370.0,101360.0,0.1884738]
[1733510128355,0.10202951,101370.0,101360.0,0.20938586]
[1733510128570,0.002,101370.0,101360.0,0.20938586]
[1733510129445,0.0485,101410.0,101360.0,0.20938586]
[1733510129446,0.1271,101410.0,101390.0,0.029588]
[1733510129682,0.10101629,101400.0,101390.0,0.029588]
[1733510129891,0.10101629,101400.0,101390.0,0.059175]
[1733510130093,0.10101629,101400.0,101390.0,0.0650925]
[1733510130511,0.10101629,101400.0,101380.0,0.209178]
[1733510130739,0.12302951,101390.0,101370.0,0.059185]
[1733510130948,0.18011629,101380.0,101370.0,0.059185]
[1733510131232,0.20311629,101380.0,101370.0,0.029594]
[1733510131471,0.023,101370.0,101360.0,0.0304644]
[1733510131686,0.12302951,101370.0,101360.0,0.0304644]
[1733510131894,0.12302951,101370.0,101360.0,0.04264175]
[1733510132103,0.10002951,101370.0,101360.0,0.04264175]
[1733510132304,0.10002951,101370.0,101360.0,0.03943044]
[1733510132520,0.10002951,101370.0,101360.0,0.04264175]
[1733510132710,0.10020211,101370.0,101360.0,0.19264175]
[1733510133391,0.0001726,101370.0,101360.0,0.19264175]
[1733510133594,0.10020211,101370.0,101360.0,0.19264175]
[1733510133855,0.10020211,101370.0,101360.0,0.18367571]
[1733510134036,0.10120211,101370.0,101360.0,0.03367571]
[1733510134252,0.10120211,101370.0,101360.0,0.00408071]
[1733510134460,0.10120211,101370.0,101360.0,0.00355275]
[1733510134461,0.43961932,101370.0,101360.0,0.00355275]
[1733510134662,0.51001932,101370.0,101360.0,0.00355275]
[1733510134866,0.54989911,101370.0,101360.0,0.00355275]
[1733510135325,0.54889911,101370.0,101360.0,0.00355275]
[1733510135540,0.55689911,101370.0,101360.0,0.00355275]
[1733510135744,0.49889911,101370.0,101360.0,0.00446374]
[1733510135955,0.49889911,101370.0,101360.0,0.0008694]
[1733510136413,0.44889911,101370.0,101360.0,0.0008694]
[1733510136619,0.48675943,101370.0,101360.0,0.0008694]
[1733510137068,0.48275943,101370.0,101360.0,0.0008694]
[1733510137475,0.49975943,101370.0,101360.0,0.0008694]
[1733510137802,0.49075943,101370.0,101360.0,0.0008694]
[1733510138010,0.49075943,101370.0,101330.0,0.0008695]
[1733510138011,0.023,101340.0,101330.0,0.0008695]
[1733510138223,0.37137129,101340.0,101330.0,0.0008695]
[1733510138436,0.372989,101330.0,101280.0,0.029618]
[1733510138673,0.023,101300.0,101280.0,0.029618]
[1733510138881,0.00098678,101290.0,101280.0,0.029618]
[1733510139092,0.10101629,101290.0,101280.0,0.059238]
[1733510139297,0.0822,101310.0,101290.0,0.029615]
[1733510139507,0.10101629,101300.0,101290.0,0.029615]
[1733510139744,0.10101629,101300.0,101290.0,0.059231]
[1733510139948,0.12401629,101300.0,101290.0,0.05980706]
[1733510140397,0.12401629,101300.0,101290.0,0.06874967]
[1733510140858,0.12501629,101300.0,101290.0,0.06874967]
[1733510141065,0.32244929,101300.0,101290.0,0.00057606]
[1733510141271,0.12302951,101300.0,101290.0,0.00057606]
[1733510141509,0.13101629,101300.0,101290.0,0.03019306]
[1733510141992,0.13101629,101300.0,101290.0,0.00057606]
[1733510142196,0.13101629,101300.0,101290.0,0.03019306]
[1733510142937,0.13101629,101300.0,101290.0,0.00057606]
[1733510143491,0.13101629,101300.0,101290.0,0.03019306]
[1733510143695,0.13101629,101300.0,101280.0,0.02962]
[1733510143901,0.13101629,101300.0,101290.0,0.029617]
[1733510144110,0.10702951,101300.0,101290.0,0.029617]
[1733510144305,0.023,101290.0,101280.0,0.02979121]
[1733510144534,0.12401629,101290.0,101280.0,0.00017321]
[1733510144821,0.32048151,101290.0,101280.0,0.00017321]
[1733510145011,0.37048151,101290.0,101280.0,0.00017321]
[1733510145230,0.44588151,101290.0,101280.0,0.00017321]
[1733510145623,0.17542951,101290.0,101280.0,0.00017321]
[1733510145748,0.17641629,101290.0,101280.0,0.02979321]
[1733510145948,0.10002951,101290.0,101280.0,0.02979321]
[1733510146453,0.10002951,101290.0,101280.0,0.03782172]
[1733510146679,0.10402951,101290.0,101280.0,0.06252829]
[1733510146905,0.10402951,101290.0,101280.0,0.06290744]
[1733510147336,0.10102951,101290.0,101280.0,0.06290744]
[1733510148209,0.10102951,101290.0,101280.0,0.03820087]
[1733510148431,0.12402951,101290.0,101280.0,0.03820087]
[1733510149650,0.12501629,101290.0,101280.0,0.03820087]
[1733510150260,0.12501629,101290.0,101280.0,0.00858087]
[1733510150508,0.12501629,101290.0,101280.0,0.02832787]
[1733510150827,0.12501629,101290.0,101280.0,0.03511016]
[1733510151035,0.12501629,101290.0,101280.0,0.02832787]
[1733510151483,0.32246829,101290.0,101280.0,0.00858087]
[1733510151706,0.12402951,101290.0,101280.0,0.02832787]
[1733510151875,0.12501629,101290.0,101280.0,0.02832787]
[1733510152283,0.10102951,101290.0,101280.0,0.02832787]
[1733510152489,0.001,101290.0,101280.0,0.03807232]
[1733510152694,0.001,101290.0,101280.0,0.23487232]
[1733510152915,0.001,101290.0,101280.0,0.23388496]
[1733510153094,0.001,101290.0,101280.0,0.23475436]
[1733510153491,0.10636618,101330.0,101320.0,0.019739]
[1733510153684,0.18001629,101330.0,101320.0,0.0256608]
[1733510154096,0.37739029,101330.0,101320.0,0.00690449]
[1733510154293,0.37640351,101330.0,101320.0,0.00690449]
[1733510154716,0.37697886,101330.0,101320.0,0.00690449]
[1733510154945,0.38397886,101330.0,101320.0,0.00690449]
[1733510155157,0.43397886,101330.0,101320.0,0.00690449]
[1733510155917,0.45697886,101330.0,101320.0,0.00690449]
[1733510156121,0.45697886,101330.0,101320.0,0.00737565]
[1733510156499,0.41197886,101330.0,101320.0,0.00737565]
[1733510156741,0.46197886,101330.0,101320.0,0.00737565]
[1733510156958,0.45497886,101330.0,101320.0,0.00737565]
[1733510157182,0.40497886,101330.0,101320.0,0.00047116]
[1733510157395,0.66081914,101330.0,101320.0,0.00724293]
[1733510157606,0.303342,101300.0,101280.0,0.0403624]
[1733510157794,0.12401629,101290.0,101280.0,0.0403614]
[1733510159214,0.32146829,101290.0,101280.0,0.00104261]
[1733510159439,0.42048151,101290.0,101280.0,0.00104261]
[1733510159812,0.41948151,101290.0,101280.0,0.00180046]
[1733510160032,0.36948151,101290.0,101280.0,0.00104261]
[1733510160440,0.42648151,101290.0,101280.0,0.00104261]
[1733510161009,0.42048151,101290.0,101280.0,0.00104261]
[1733510161355,0.60922179,101290.0,101280.0,0.00104261]
[1733510161599,0.6349042,101290.0,101280.0,0.00104261]
[1733510161799,0.6289042,101290.0,101280.0,0.00104261]
[1733510162002,0.72871954,101290.0,101280.0,0.00104261]
[1733510162214,0.73371954,101290.0,101280.0,0.00104261]
[1733510162453,0.88371954,101290.0,101280.0,0.00104261]
[1733510162662,0.399091,101270.0,101260.0,0.0160811]
[1733510162878,0.54912051,101270.0,101260.0,0.01625347]
[1733510163805,0.320511,101260.0,101250.0,0.0008694]
[1733510164008,0.42054051,101260.0,101250.0,0.0008694]
[1733510164278,0.32054051,101260.0,101250.0,0.0008694]
[1733510164706,0.31955051,101260.0,101250.0,0.0008694]
[1733510165786,0.32655051,101260.0,101250.0,0.0008694]
[1733510166025,0.37655051,101260.0,101250.0,0.0008694]
[1733510166829,0.32655051,101260.0,101250.0,0.0008694]
[1733510167033,0.61340544,101260.0,101250.0,0.0008694]
[1733510167237,0.65563709,101260.0,101250.0,0.0008694]
[1733510167467,0.77240544,101260.0,101250.0,0.0008694]
[1733510168309,0.19753,101250.0,101240.0,0.0008694]
[1733510168541,0.32205,101240.0,101230.0,4.0008694]
[1733510168776,0.44507951,101240.0,101230.0,4.0008694]
[1733510168997,0.48086194,101240.0,101230.0,4.0008694]
[1733510169412,0.58067728,101240.0,101230.0,4.0008694]
[1733510169626,0.54489485,101240.0,101230.0,4.0008694]
[1733510170101,0.45207951,101240.0,101230.0,4.0008694]
[1733510170319,0.80310118,101240.0,101230.0,3.8832021]
[1733510170533,0.79610118,101240.0,101230.0,3.8597841]
[1733510170745,0.80510118,101240.0,101230.0,3.84157009]
[1733510171216,0.45407951,101240.0,101230.0,3.84157009]
[1733510171457,0.48507951,101240.0,101230.0,3.84157009]
[1733510171665,0.43907951,101240.0,101230.0,3.84157009]
[1733510171914,0.43287951,101240.0,101230.0,3.84157009]
[1733510172340,0.49187951,101240.0,101230.0,3.72157009]
[1733510172514,0.44187951,101240.0,101230.0,3.72157009]
[1733510172744,0.46487951,101240.0,101230.0,3.72157009]
[1733510173128,0.76590118,101240.0,101230.0,3.72157009]
[1733510173544,0.80053517,101240.0,101230.0,3.72157009]
[1733510173690,0.84953517,101240.0,101230.0,3.72157009]
[1733510174300,0.84953517,101240.0,101230.0,3.64719045]
[1733510174507,0.84953517,101240.0,101230.0,3.62047245]
[1733510174733,0.94935051,101240.0,101230.0,3.62047245]
[1733510175142,0.94935051,101240.0,101230.0,2.92666163]
[1733510176374,0.9756363,101240.0,101230.0,2.92666163]
[1733510177278,0.9756363,101240.0,101230.0,2.52186643]
[1733510177476,0.80815632,101240.0,101230.0,2.52186643]
[1733510178307,0.84211584,101240.0,101230.0,2.52186643]
[1733510178512,0.80815632,101240.0,101230.0,2.52186643]
[1733510178932,0.4411653,101240.0,101230.0,2.52186643]
[1733510179104,0.1443153,101240.0,101230.0,2.62168177]
[1733510179530,0.11802951,101240.0,101230.0,2.65131677]
[1733510179763,0.11802951,101240.0,101230.0,2.80131677]
[1733510179964,0.10902951,101240.0,101230.0,2.73211677]
[1733510180293,0.11802951,101240.0,101230.0,2.88211677]
[1733510180505,0.10902951,101240.0,101230.0,2.88211677]
[1733510180762,0.00017251,101270.0,101250.0,0.029628]
[1733510180956,0.10311306,101260.0,101250.0,0.0651808]
[1733510181161,0.10002951,101260.0,101250.0,0.0651808]
[1733510181367,0.00017251,101270.0,101260.0,0.303826]
[1733510181605,0.10020202,101270.0,101260.0,0.1242]
[1733510181833,0.10020202,101270.0,101250.0,0.059254]
[1733510182041,0.10020202,101270.0,101260.0,0.029626]
[1733510182293,0.10020202,101270.0,101260.0,0.03061346]
[1733510182294,0.00017251,101270.0,101260.0,0.03061346]
[1733510182494,0.00017251,101270.0,101260.0,0.22911346]
[1733510182692,0.00017251,101270.0,101260.0,0.228126]
[1733510182947,0.00017251,101270.0,101260.0,0.2648267]
[1733510183169,0.001738,101290.0,101280.0,0.02962]
[1733510183402,0.10176751,101290.0,101280.0,0.02962]
[1733510183638,0.10275429,101290.0,101280.0,0.02962]
[1733510183860,0.10176751,101290.0,101280.0,0.03060729]
[1733510184077,0.001738,101290.0,101280.0,0.19729222]
[1733510184322,0.004738,101290.0,101280.0,0.19630493]
[1733510184588,0.10176751,101290.0,101280.0,0.04630493]
[1733510185025,0.10676751,101290.0,101280.0,0.04630493]
[1733510185695,0.10976751,101290.0,101280.0,0.04630493]
[1733510186149,0.12776751,101290.0,101280.0,0.04630493]
[1733510186387,0.12875429,101290.0,101280.0,0.02962]
[1733510186606,0.12975429,101290.0,101280.0,0.02962]
[1733510186824,0.12776751,101290.0,101280.0,0.02962]
[1733510187300,0.13276751,101290.0,101280.0,0.02962]
[1733510187530,0.13276751,101290.0,101280.0,0.04880866]
[1733510187753,0.12976751,101290.0,101280.0,0.02962]
[1733510189053,0.13375429,101290.0,101280.0,0.02962]
[1733510189497,0.009738,101290.0,101280.0,0.17962]
[1733510189721,0.10976751,101290.0,101280.0,0.17962]
[1733510189963,0.10976751,101290.0,101280.0,0.02962]
[1733510190211,0.10726751,101290.0,101280.0,0.02962]
[1733510190912,0.13026751,101290.0,101280.0,0.02962]
[1733510191830,0.007238,101290.0,101280.0,0.18060723]
[1733510192103,0.007238,101290.0,101280.0,0.17962]
[1733510192323,0.10726751,101290.0,101280.0,0.02962]
[1733510193021,0.30570929,101290.0,101270.0,0.02602461]
[1733510193253,0.197548,101250.0,101230.0,2.04584127]
[1733510193483,0.32156629,101240.0,101230.0,2.04601378]
[1733510193703,0.12302951,101240.0,101230.0,2.07564878]
[1733510193900,0.12401629,101240.0,101230.0,2.04601378]
[1733510194158,0.12302951,101240.0,101230.0,2.10188651]
[1733510194863,0.12302951,101240.0,101230.0,2.04601378]
[1733510195080,0.12401629,101240.0,101230.0,2.04601378]
[1733510195523,0.12901629,101240.0,101230.0,2.04601378]
[1733510195982,0.33556629,101240.0,101230.0,2.04601378]
[1733510196199,0.12802951,101240.0,101230.0,2.04601378]
[1733510196414,0.12901629,101240.0,101230.0,2.04601378]
[1733510196641,0.13801629,101240.0,101230.0,2.04601378]
[1733510196887,0.13301629,101240.0,101230.0,2.04601378]
[1733510197096,0.13901629,101240.0,101230.0,2.04601378]
[1733510197563,0.13301629,101240.0,101230.0,2.04601378]
[1733510197806,0.13301629,101240.0,101230.0,2.17546412]
[1733510198033,0.11402951,101240.0,101230.0,2.17546412]
[1733510198935,0.10502951,101240.0,101230.0,2.04601378]
[1733510199153,0.13801629,101240.0,101230.0,2.07564878]
[1733510199374,0.13801629,101240.0,101230.0,2.04601378]
[1733510199589,0.12901629,101240.0,101230.0,2.04601378]
[1733510199831,0.13101629,101240.0,101230.0,2.04601378]
[1733510200278,0.13701629,101240.0,101230.0,2.04601378]
[1733510200497,0.13602951,101240.0,101230.0,2.07564878]
[1733510200732,0.13002951,101240.0,101230.0,2.07564878]
[1733510201184,0.13402951,101240.0,101230.0,2.07564878]
[1733510201633,0.011,101240.0,101230.0,2.07564878]
[1733510201847,0.011,101240.0,101230.0,2.32546412]
[1733510202911,0.034,101240.0,101230.0,2.32546412]
[1733510203816,0.13402951,101240.0,101230.0,2.32546412]
[1733510205149,0.011,101240.0,101230.0,2.37546412]
[1733510205811,0.11102951,101240.0,101230.0,2.32546412]
[1733510206022,0.10402951,101240.0,101230.0,2.32546412]
[1733510206449,0.12302951,101240.0,101230.0,2.32746412]
[1733510206666,0.12302951,101240.0,101230.0,2.32646412]
[1733510207102,0.12302951,101240.0,101230.0,2.32846412]
[1733510207315,0.023,101240.0,101230.0,2.32746412]
[1733510207566,0.00098678,101270.0,101230.0,2.32746412]
[1733510207825,0.10002951,101270.0,101260.0,0.029626]
[1733510208020,0.0017378,101290.0,101280.0,0.02962]
[1733510208232,0.10275409,101290.0,101280.0,0.0355441]
[1733510209147,0.10176731,101290.0,101280.0,0.03653138]
[1733510209362,0.0017378,101290.0,101280.0,0.0355441]
[1733510209583,0.0017378,101290.0,101280.0,0.03653127]
[1733510209800,0.0067378,101290.0,101280.0,0.03653127]
[1733510210015,0.0017378,101290.0,101280.0,0.03653127]
[1733510210450,0.0027378,101290.0,101280.0,0.0355441]
[1733510210667,0.0027378,101290.0,101280.0,0.03653125]
[1733510211321,0.0257378,101290.0,101280.0,0.03653125]
[1733510212630,0.0257378,101290.0,101280.0,0.0355441]
[1733510213307,0.0257378,101290.0,101280.0,0.03653127]
[1733510213977,0.0027378,101290.0,101280.0,0.49344677]
[1733510214188,0.0027378,101290.0,101280.0,0.4924596]
[1733510215031,0.0027378,101290.0,101280.0,0.39243009]
[1733510215246,0.0257378,101290.0,101280.0,0.28650599]
[1733510215430,0.0257378,101290.0,101280.0,0.20570599]
[1733510215651,0.0247378,101290.0,101280.0,0.20570599]
[1733510215863,0.0267378,101290.0,101280.0,0.21370599]
[1733510216295,0.0257378,101290.0,101280.0,0.20670599]
[1733510216515,0.0257378,101290.0,101280.0,0.24201079]
[1733510216941,0.0027378,101290.0,101280.0,0.05570599]
[1733510217374,0.0027378,101290.0,101280.0,0.05669313]
[1733510217581,0.0027378,101290.0,101280.0,0.05769313]
[1733510217815,0.0017378,101290.0,101280.0,0.05769313]
[1733510218034,0.0017378,101290.0,101280.0,0.13519313]
[1733510218255,0.0247378,101290.0,101280.0,0.31763664]
[1733510218461,0.0247378,101290.0,101280.0,0.3136495]
[1733510218667,0.0257378,101290.0,101270.0,0.356842]
[1733510218916,0.0257378,101290.0,101280.0,0.02962]
[1733510219348,0.0257378,101290.0,101280.0,0.03360715]
[1733510219560,0.0247378,101290.0,101280.0,0.08170864]
[1733510220332,0.0247378,101290.0,101280.0,0.07183564]
[1733510220527,0.0247378,101290.0,101280.0,0.07283564]
[1733510220737,0.0247378,101290.0,101280.0,0.22184849]
[1733510220909,0.5,101300.0,101280.0,0.341625]
[1733510221113,0.5,101300.0,101290.0,0.00098712]
[1733510221572,0.5,101300.0,101290.0,0.019745]
[1733510221745,0.5,101300.0,101290.0,0.2178567]
[1733510222286,0.5,101300.0,101280.0,0.31842351]
[1733510222500,0.0017388,101290.0,101280.0,0.31842351]
[1733510222778,0.0017388,101290.0,101280.0,0.37902898]
[1733510223002,0.0017388,101290.0,101280.0,0.37602898]
[1733510223448,8e-07,101290.0,101280.0,0.37602898]
[1733510223873,8e-07,101290.0,101280.0,0.09709947]
[1733510224088,8e-07,101290.0,101280.0,0.29811608]
[1733510224294,8e-07,101290.0,101280.0,0.44712898]
[1733510224636,8e-07,101290.0,101280.0,0.48712898]
[1733510225273,8e-07,101290.0,101280.0,0.49012898]
[1733510225473,0.0010008,101290.0,101280.0,0.49012898]
[1733510225883,8e-07,101290.0,101280.0,0.49012898]
[1733510226089,0.499,101300.0,101290.0,0.25]
[1733510226287,0.499,101300.0,101290.0,0.42076211]
[1733510227941,0.499,101300.0,101290.0,0.42376211]
[1733510228317,0.499,101300.0,101290.0,0.49906211]
[1733510230293,0.479257,101300.0,101290.0,0.49906211]
[1733510230500,0.39816156,101300.0,101290.0,0.49906211]
[1733510230743,0.37849156,101300.0,101290.0,0.49906211]
[1733510230973,0.37849156,101300.0,101290.0,0.51951884]
[1733510231405,0.29951956,101300.0,101290.0,0.51951884]
[1733510231628,0.27977656,101300.0,101290.0,0.51951884]
[1733510232045,0.28077656,101300.0,101290.0,0.51651884]
[1733510232473,0.28077656,101300.0,101290.0,0.29818933]
[1733510232474,0.28177656,101300.0,101290.0,0.29818933]
[1733510232692,0.28177656,101300.0,101290.0,0.04720173]
[1733510232693,0.40380607,101300.0,101290.0,0.04720173]
[1733510232924,0.40480607,101300.0,101290.0,0.007]
[1733510233153,0.60223907,101300.0,101290.0,0.007]
[1733510233374,0.64883907,101300.0,101290.0,0.007]
[1733510233581,0.72773907,101300.0,101280.0,0.04]
[1733510233800,0.12709894,101290.0,101280.0,0.0479495]
[1733510234035,0.35967656,101300.0,101280.0,0.1071885]
[1733510234266,0.48270607,101300.0,101290.0,0.028745]
[1733510234463,0.48170607,101300.0,101290.0,0.019745]
[1733510234661,0.48170607,101300.0,101290.0,0.03543835]
[1733510234873,0.48570607,101300.0,101290.0,0.03543835]
[1733510235078,0.48570607,101300.0,101290.0,0.03243835]
[1733510235290,0.48570607,101300.0,101290.0,0.019745]
[1733510235507,0.49044387,101300.0,101290.0,0.019745]
[1733510235743,0.023,101290.0,101280.0,0.0685634]
[1733510235956,0.12401629,101290.0,101280.0,0.0408689]
[1733510236198,0.36936829,101290.0,101280.0,0.0408689]
[1733510236436,0.17092951,101290.0,101280.0,0.0408689]
[1733510236640,0.17191629,101290.0,101280.0,0.0408689]
[1733510236836,0.36936829,101290.0,101280.0,0.0408689]
[1733510237053,0.36838151,101290.0,101280.0,0.05190539]
[1733510237262,0.36838151,101290.0,101280.0,0.04890539]
[1733510237495,0.36838151,101290.0,101280.0,0.0408689]
[1733510237710,0.37438151,101290.0,101280.0,0.0428689]
[1733510237930,0.17692951,101290.0,101280.0,0.0626159]
[1733510238178,0.17791629,101290.0,101280.0,0.0616159]
[1733510238409,0.18091629,101290.0,101280.0,0.0616159]
[1733510238625,0.18091629,101290.0,101280.0,0.07172709]
[1733510238841,0.17992951,101290.0,101280.0,0.07172709]
[1733510239070,0.009,101290.0,101280.0,0.22172709]
[1733510240231,0.10902951,101290.0,101280.0,0.0616159]
[1733510240903,0.1548,101240.0,101230.0,2.06559727]
[1733510241130,0.1548,101240.0,101230.0,2.06576978]
[1733510241131,0.20532951,101240.0,101230.0,2.06576978]
[1733510241350,0.023,101250.0,101230.0,2.06576978]
[1733510241571,0.12302951,101250.0,101230.0,2.18534012]
[1733510241778,0.12302951,101250.0,101240.0,0.019753]
[1733510243019,0.5193251,101250.0,101230.0,2.16558412]
[1733510243227,0.12426425,101240.0,101230.0,2.16558412]
[1733510243432,0.12426425,101240.0,101230.0,2.14582912]
[1733510243647,0.12526425,101240.0,101230.0,2.14882912]
[1733510243845,0.001,101240.0,101230.0,2.16858512]
[1733510244214,0.001,101240.0,101230.0,2.16558512]
[1733510244633,0.0242346,101250.0,101230.0,2.18534112]
[1733510244840,0.12426411,101250.0,101230.0,2.18534112]
[1733510245076,0.10102951,101240.0,101230.0,2.16558512]
[1733510245286,0.12402951,101240.0,101230.0,2.16558512]
[1733510246146,0.12302951,101240.0,101230.0,2.16558512]
[1733510246332,0.12302951,101240.0,101230.0,2.16858512]
[1733510246787,0.12302951,101240.0,101230.0,2.16558512]
[1733510247005,0.12302951,101240.0,101230.0,2.16858512]
[1733510247226,0.12302951,101240.0,101230.0,2.18924162]
[1733510248626,0.0012346,101250.0,101230.0,2.33924162]
[1733510248881,0.0805,101280.0,101270.0,0.019748]
[1733510249105,0.039499,101290.0,101270.0,0.0399903]
[1733510249327,0.36201436,101300.0,101290.0,0.019745]
[1733510249547,0.46204387,101300.0,101290.0,0.019745]
[1733510249785,0.46204387,101300.0,101290.0,0.02413205]